[Event "Early-Titled-Tuesday-Blitz-January-30-2024"]
[Site "Chess.com"]
[Date "2024.01.30"]
[Round "9"]
[White "Mikhail_Golubev"]
[Black "BelyakovBogdan"]
[Result "0-1"]
[WhiteElo "2669"]
[BlackElo "2566"]
[TimeControl "180+1"]
[EndTime "9:49:14 PST"]
[Termination "BelyakovBogdan won on time"]

1. e4 {[%clk 0:03:00.9]} 1... e5 {[%clk 0:02:59.3]} 2. Nf3 {[%clk 0:03:00]} 2...
Nc6 {[%clk 0:02:59.6]} 3. Bc4 {[%clk 0:02:57.9]} 3... Bc5 {[%clk 0:02:59]} 4. c3
{[%clk 0:02:57.2]} 4... Nf6 {[%clk 0:02:58.8]} 5. d4 {[%clk 0:02:57.8]} 5...
exd4 {[%clk 0:02:59.7]} 6. cxd4 {[%clk 0:02:58.5]} 6... Bb4+ {[%clk 0:02:59.5]}
7. Nbd2 {[%clk 0:02:59.2]} 7... d5 {[%clk 0:02:35.5]} 8. exd5 {[%clk 0:02:57.5]}
8... Nxd5 {[%clk 0:02:36.4]} 9. O-O {[%clk 0:02:57.4]} 9... O-O {[%clk
0:02:33.1]} 10. a3 {[%clk 0:02:57.5]} 10... Be7 {[%clk 0:02:27.9]} 11. Re1
{[%clk 0:02:55.5]} 11... Be6 {[%clk 0:02:22.1]} 12. Ba2 {[%clk 0:02:49.8]} 12...
Nf4 {[%clk 0:02:12.4]} 13. Bxe6 {[%clk 0:02:39.9]} 13... Nxe6 {[%clk 0:02:05.1]}
14. Ne4 {[%clk 0:02:34.9]} 14... Ncxd4 {[%clk 0:02:03.6]} 15. Nxd4 {[%clk
0:02:32.9]} 15... Qxd4 {[%clk 0:02:03.2]} 16. Qf3 {[%clk 0:01:43.4]} 16... Rad8
{[%clk 0:01:58.8]} 17. Be3 {[%clk 0:01:36.5]} 17... Qxb2 {[%clk 0:01:56.7]} 18.
Rab1 {[%clk 0:01:35.1]} 18... Qxa3 {[%clk 0:01:54.6]} 19. Rxb7 {[%clk
0:01:34.8]} 19... a5 {[%clk 0:01:54.5]} 20. h4 {[%clk 0:01:21.4]} 20... Bxh4
{[%clk 0:01:46.5]} 21. Qh3 {[%clk 0:01:08]} 21... Be7 {[%clk 0:01:44.2]} 22. Rb5
{[%clk 0:01:07.7]} 22... Qd3 {[%clk 0:01:42.8]} 23. Qf5 {[%clk 0:00:57.1]} 23...
c6 {[%clk 0:01:30.5]} 24. Re5 {[%clk 0:00:51.2]} 24... Rd5 {[%clk 0:01:27.4]}
25. Bd2 {[%clk 0:00:38.2]} 25... Rxe5 {[%clk 0:01:14.1]} 26. Nf6+ {[%clk
0:00:36.5]} 26... Bxf6 {[%clk 0:01:10.2]} 27. Qxd3 {[%clk 0:00:37.4]} 27... Rd5
{[%clk 0:01:05.4]} 28. Qc2 {[%clk 0:00:29.9]} 28... a4 {[%clk 0:01:04.1]} 29.
Be3 {[%clk 0:00:22.4]} 29... a3 {[%clk 0:01:01.4]} 30. Qxc6 {[%clk 0:00:20.3]}
30... Ra5 {[%clk 0:00:58.9]} 31. Bd2 {[%clk 0:00:18.3]} 31... Raa8 {[%clk
0:00:54.3]} 32. Rxe6 {[%clk 0:00:16.3]} 32... fxe6 {[%clk 0:00:49.9]} 33. Qxe6+
{[%clk 0:00:16.4]} 33... Kh8 {[%clk 0:00:49.1]} 34. Qa2 {[%clk 0:00:16.1]} 34...
Rfb8 {[%clk 0:00:46.5]} 35. Bc1 {[%clk 0:00:16]} 35... Rc8 {[%clk 0:00:43.9]}
36. Bxa3 {[%clk 0:00:09.2]} 36... Be7 {[%clk 0:00:43.3]} 37. Qd5 {[%clk
0:00:07.1]} 37... Bxa3 {[%clk 0:00:42.9]} 38. g3 {[%clk 0:00:07.3]} 38... Rf8
{[%clk 0:00:41.9]} 39. Kg2 {[%clk 0:00:06.9]} 39... Rad8 {[%clk 0:00:41.1]} 40.
Qg5 {[%clk 0:00:05.4]} 40... h6 {[%clk 0:00:40]} 41. Qe3 {[%clk 0:00:05.1]}
41... Bd6 {[%clk 0:00:37.2]} 42. Qc3 {[%clk 0:00:03.7]} 42... Rc8 {[%clk
0:00:34.7]} 43. Qd3 {[%clk 0:00:02.7]} 43... Be7 {[%clk 0:00:33.9]} 44. f4
{[%clk 0:00:03.1]} 44... Bf6 {[%clk 0:00:34]} 45. Kh3 {[%clk 0:00:03.2]} 45...
Rc3 {[%clk 0:00:33.6]} 46. Qg6 {[%clk 0:00:03.7]} 46... Rfc8 {[%clk 0:00:31.1]}
47. Kg4 {[%clk 0:00:03.7]} 47... Bd4 {[%clk 0:00:30.5]} 48. Kh5 {[%clk
0:00:03.5]} 48... Bf2 {[%clk 0:00:29.6]} 49. Qf5 {[%clk 0:00:01.6]} 49... Bxg3
{[%clk 0:00:28.8]} 0-1

[Event "Early-Titled-Tuesday-Blitz-January-30-2024"]
[Site "Chess.com"]
[Date "2024.01.30"]
[Round "9"]
[White "Nemegejas"]
[Black "OparinGrigoriy"]
[Result "1-0"]
[WhiteElo "2873"]
[BlackElo "2989"]
[TimeControl "180+1"]
[EndTime "9:49:15 PST"]
[Termination "Nemegejas won by resignation"]

1. d4 {[%clk 0:03:00.9]} 1... Nf6 {[%clk 0:03:00]} 2. c4 {[%clk 0:03:01.3]} 2...
e6 {[%clk 0:03:00.1]} 3. Nf3 {[%clk 0:03:02]} 3... b6 {[%clk 0:03:00.3]} 4. Nc3
{[%clk 0:03:00.6]} 4... Bb7 {[%clk 0:03:00.3]} 5. Bg5 {[%clk 0:02:58]} 5... Bb4
{[%clk 0:02:55.8]} 6. Rc1 {[%clk 0:02:57.5]} 6... h6 {[%clk 0:02:55.8]} 7. Bxf6
{[%clk 0:02:58.1]} 7... Qxf6 {[%clk 0:02:56.6]} 8. a3 {[%clk 0:02:58.4]} 8...
Bxc3+ {[%clk 0:02:56.4]} 9. Rxc3 {[%clk 0:02:59.2]} 9... d6 {[%clk 0:02:56.8]}
10. g3 {[%clk 0:02:58.7]} 10... Nd7 {[%clk 0:02:56.8]} 11. Bg2 {[%clk
0:02:58.8]} 11... O-O {[%clk 0:02:56.9]} 12. O-O {[%clk 0:02:59.2]} 12... Qe7
{[%clk 0:02:43.6]} 13. Re1 {[%clk 0:02:58.4]} 13... Nf6 {[%clk 0:02:42.7]} 14.
Nd2 {[%clk 0:02:57.5]} 14... Bxg2 {[%clk 0:02:42.2]} 15. Kxg2 {[%clk 0:02:58.4]}
15... e5 {[%clk 0:02:42.2]} 16. d5 {[%clk 0:02:55.3]} 16... a5 {[%clk
0:02:42.5]} 17. b3 {[%clk 0:02:52.5]} 17... Nd7 {[%clk 0:02:31.4]} 18. e4 {[%clk
0:02:51.5]} 18... f5 {[%clk 0:02:31.7]} 19. exf5 {[%clk 0:02:47.6]} 19... Rxf5
{[%clk 0:02:32.6]} 20. Rf3 {[%clk 0:02:46.1]} 20... Qf7 {[%clk 0:02:26.2]} 21.
Ree3 {[%clk 0:02:42.4]} 21... Nc5 {[%clk 0:02:20.3]} 22. b4 {[%clk 0:02:40.2]}
22... axb4 {[%clk 0:02:20.2]} 23. axb4 {[%clk 0:02:41.1]} 23... Nd7 {[%clk
0:02:18.3]} 24. Ne4 {[%clk 0:02:41.7]} 24... Qh5 {[%clk 0:01:52.5]} 25. Qd3
{[%clk 0:02:33.7]} 25... Raf8 {[%clk 0:01:44.8]} 26. Rxf5 {[%clk 0:02:33.6]}
26... Rxf5 {[%clk 0:01:45.7]} 27. f3 {[%clk 0:02:21.9]} 27... Rf8 {[%clk
0:01:44.2]} 28. Qa3 {[%clk 0:02:22.1]} 28... Qf5 {[%clk 0:01:29.8]} 29. Qa7
{[%clk 0:02:20.8]} 29... Nf6 {[%clk 0:01:29.9]} 30. Nxf6+ {[%clk 0:01:31.7]}
30... Rxf6 {[%clk 0:01:30.8]} 31. Qxc7 {[%clk 0:01:31.4]} 31... Qc2+ {[%clk
0:01:30.6]} 32. Kg1 {[%clk 0:01:29]} 32... Qd1+ {[%clk 0:00:47.7]} 33. Kf2
{[%clk 0:01:28]} 33... Qd2+ {[%clk 0:00:48]} 34. Re2 {[%clk 0:01:26.1]} 34...
Qxb4 {[%clk 0:00:48.3]} 35. Kg2 {[%clk 0:01:21.3]} 35... Qc3 {[%clk 0:00:39.4]}
36. Rf2 {[%clk 0:01:18]} 36... Qe3 {[%clk 0:00:39.5]} 37. Qd7 {[%clk 0:00:59.7]}
37... Qd3 {[%clk 0:00:30.9]} 38. Qb5 {[%clk 0:00:48.2]} 38... Qd4 {[%clk
0:00:26.1]} 39. Re2 {[%clk 0:00:28.8]} 39... Kh7 {[%clk 0:00:19.9]} 40. Qb3
{[%clk 0:00:29.2]} 40... h5 {[%clk 0:00:19.1]} 41. Qc2+ {[%clk 0:00:29.8]} 41...
Kh6 {[%clk 0:00:17.9]} 42. Re4 {[%clk 0:00:30.3]} 42... Qc5 {[%clk 0:00:18]} 43.
Qd2+ {[%clk 0:00:30.7]} 43... Kh7 {[%clk 0:00:18.3]} 44. Qg5 {[%clk 0:00:30]}
44... Rh6 {[%clk 0:00:11.8]} 45. Qf5+ {[%clk 0:00:30.2]} 45... Kg8 {[%clk
0:00:12.4]} 46. f4 {[%clk 0:00:27]} 46... Qb4 {[%clk 0:00:06.6]} 47. fxe5 {[%clk
0:00:25.4]} 47... Qb2+ {[%clk 0:00:06.9]} 48. Qf2 {[%clk 0:00:25.5]} 48... Qb1
{[%clk 0:00:04.8]} 49. Re1 {[%clk 0:00:21.7]} 49... Qd3 {[%clk 0:00:01.9]} 50.
e6 {[%clk 0:00:22.2]} 50... Rf6 {[%clk 0:00:02.2]} 51. Qxf6 {[%clk 0:00:22.8]}
51... gxf6 {[%clk 0:00:02.7]} 52. e7 {[%clk 0:00:23.4]} 52... Qd2+ {[%clk
0:00:03.3]} 53. Kf1 {[%clk 0:00:23.6]} 53... Qd3+ {[%clk 0:00:03.5]} 54. Kf2
{[%clk 0:00:22.8]} 54... Qd2+ {[%clk 0:00:03.6]} 55. Re2 {[%clk 0:00:23.2]}
55... Qd4+ {[%clk 0:00:04.1]} 56. Kg2 {[%clk 0:00:22.6]} 1-0

[Event "Early-Titled-Tuesday-Blitz-January-30-2024"]
[Site "Chess.com"]
[Date "2024.01.30"]
[Round "9"]
[White "invisible_s0ul"]
[Black "Zq1"]
[Result "0-1"]
[WhiteElo "2249"]
[BlackElo "2505"]
[TimeControl "180+1"]
[EndTime "9:49:15 PST"]
[Termination "Zq1 won by resignation"]

1. e4 {[%clk 0:03:00.9]} 1... c5 {[%clk 0:02:59.1]} 2. Nf3 {[%clk 0:02:59.5]}
2... d6 {[%clk 0:02:59]} 3. c3 {[%clk 0:02:57]} 3... Nf6 {[%clk 0:02:57.9]} 4.
Bd3 {[%clk 0:02:55.6]} 4... g6 {[%clk 0:02:56]} 5. h3 {[%clk 0:02:55.3]} 5...
Bg7 {[%clk 0:02:56.3]} 6. Bc2 {[%clk 0:02:55.4]} 6... O-O {[%clk 0:02:56.3]} 7.
O-O {[%clk 0:02:56.1]} 7... e5 {[%clk 0:02:56.1]} 8. d4 {[%clk 0:02:55.3]} 8...
exd4 {[%clk 0:02:55.2]} 9. cxd4 {[%clk 0:02:55.7]} 9... cxd4 {[%clk 0:02:55.4]}
10. Nxd4 {[%clk 0:02:48.6]} 10... Nc6 {[%clk 0:02:55]} 11. Nxc6 {[%clk
0:02:06.3]} 11... bxc6 {[%clk 0:02:53.6]} 12. Nc3 {[%clk 0:02:06.2]} 12... Be6
{[%clk 0:02:45.3]} 13. Bg5 {[%clk 0:01:58.2]} 13... h6 {[%clk 0:02:43.9]} 14.
Bh4 {[%clk 0:01:58.6]} 14... g5 {[%clk 0:02:41.3]} 15. Bg3 {[%clk 0:01:59]}
15... d5 {[%clk 0:02:41.5]} 16. e5 {[%clk 0:01:44.9]} 16... Nd7 {[%clk
0:02:40.2]} 17. Qd3 {[%clk 0:01:45.5]} 17... f5 {[%clk 0:02:16.6]} 18. exf6
{[%clk 0:01:46.4]} 18... Nxf6 {[%clk 0:02:16]} 19. Rfe1 {[%clk 0:01:40.2]} 19...
Qd7 {[%clk 0:02:13.7]} 20. Be5 {[%clk 0:01:14.6]} 20... Rae8 {[%clk 0:02:02.7]}
21. Na4 {[%clk 0:01:03.4]} 21... Ne4 {[%clk 0:01:53.2]} 22. Bxg7 {[%clk
0:01:01.6]} 22... Qxg7 {[%clk 0:01:47.5]} 23. f3 {[%clk 0:01:00.2]} 23... Ng3
{[%clk 0:01:42.3]} 24. Kh2 {[%clk 0:00:33]} 24... Bf5 {[%clk 0:01:35.7]} 25. Qd2
{[%clk 0:00:29.4]} 25... Qc7 {[%clk 0:01:33.4]} 26. Kg1 {[%clk 0:00:19.3]} 26...
Qf4 {[%clk 0:01:29.1]} 27. Qf2 {[%clk 0:00:13.5]} 27... Ne4 {[%clk 0:01:04]} 28.
fxe4 {[%clk 0:00:12.5]} 28... Qxf2+ {[%clk 0:01:03.2]} 29. Kxf2 {[%clk
0:00:12.6]} 29... Bxe4+ {[%clk 0:01:03.3]} 30. Kg1 {[%clk 0:00:12.4]} 30... Bxc2
{[%clk 0:01:03.1]} 31. Nc5 {[%clk 0:00:12.6]} 31... Bf5 {[%clk 0:01:02.8]} 32.
Rac1 {[%clk 0:00:11]} 32... Kg7 {[%clk 0:00:54.5]} 33. g4 {[%clk 0:00:07.7]}
33... Bc8 {[%clk 0:00:52.8]} 34. Nd3 {[%clk 0:00:06.9]} 34... Rxe1+ {[%clk
0:00:41.3]} 35. Rxe1 {[%clk 0:00:06.2]} 35... Rf7 {[%clk 0:00:37.7]} 36. Ne5
{[%clk 0:00:01.6]} 36... Re7 {[%clk 0:00:32.2]} 37. Kf2 {[%clk 0:00:01.7]} 37...
Bb7 {[%clk 0:00:25.6]} 38. Nd3 {[%clk 0:00:01.9]} 38... Rxe1 {[%clk 0:00:24.2]}
39. Kxe1 {[%clk 0:00:02.8]} 39... Kf6 {[%clk 0:00:23.9]} 40. Nc5 {[%clk
0:00:03.7]} 40... Bc8 {[%clk 0:00:23.2]} 41. Kd2 {[%clk 0:00:04.3]} 41... Ke5
{[%clk 0:00:23.4]} 42. Ke3 {[%clk 0:00:05]} 42... d4+ {[%clk 0:00:20.7]} 43. Kd3
{[%clk 0:00:05.5]} 43... Kf4 {[%clk 0:00:18.1]} 44. b4 {[%clk 0:00:05.5]} 44...
Kg3 {[%clk 0:00:17.6]} 45. Kxd4 {[%clk 0:00:06]} 45... Kxh3 {[%clk 0:00:17.6]}
46. a4 {[%clk 0:00:05.6]} 46... Kxg4 {[%clk 0:00:15.8]} 47. b5 {[%clk
0:00:06.5]} 47... cxb5 {[%clk 0:00:15.1]} 48. axb5 {[%clk 0:00:07.4]} 48... h5
{[%clk 0:00:15]} 49. Kd5 {[%clk 0:00:06.6]} 49... h4 {[%clk 0:00:14.8]} 50. Kc6
{[%clk 0:00:06.7]} 50... h3 {[%clk 0:00:14.8]} 51. Kc7 {[%clk 0:00:07.3]} 51...
Bf5 {[%clk 0:00:13.1]} 0-1

[Event "Early-Titled-Tuesday-Blitz-January-30-2024"]
[Site "Chess.com"]
[Date "2024.01.30"]
[Round "9"]
[White "Laico"]
[Black "NelsonLinda"]
[Result "0-1"]
[WhiteElo "2380"]
[BlackElo "2577"]
[TimeControl "180+1"]
[EndTime "9:49:16 PST"]
[Termination "NelsonLinda won on time"]

1. e4 {[%clk 0:02:52]} 1... c5 {[%clk 0:02:56.2]} 2. Nc3 {[%clk 0:02:52.2]} 2...
e6 {[%clk 0:02:55.9]} 3. f4 {[%clk 0:02:52.3]} 3... d5 {[%clk 0:02:54.6]} 4. Nf3
{[%clk 0:02:41.3]} 4... a6 {[%clk 0:02:50.4]} 5. g3 {[%clk 0:02:37.8]} 5... dxe4
{[%clk 0:02:49.4]} 6. Nxe4 {[%clk 0:02:38.6]} 6... Nf6 {[%clk 0:02:49.5]} 7.
Nxf6+ {[%clk 0:02:38.2]} 7... Qxf6 {[%clk 0:02:49.9]} 8. Bg2 {[%clk 0:02:38.9]}
8... Nc6 {[%clk 0:02:50.1]} 9. O-O {[%clk 0:02:39.1]} 9... Bd6 {[%clk
0:02:50.3]} 10. d3 {[%clk 0:02:21]} 10... O-O {[%clk 0:02:49.8]} 11. Kh1 {[%clk
0:02:14.5]} 11... Rd8 {[%clk 0:02:46.9]} 12. Ng5 {[%clk 0:02:13.9]} 12... Bf8
{[%clk 0:02:38.6]} 13. Qh5 {[%clk 0:02:04.9]} 13... h6 {[%clk 0:02:33.5]} 14.
Ne4 {[%clk 0:02:04]} 14... Qe7 {[%clk 0:02:32.9]} 15. Be3 {[%clk 0:01:53.6]}
15... Nd4 {[%clk 0:01:48.6]} 16. c3 {[%clk 0:01:48.1]} 16... Rd5 {[%clk
0:01:44.6]} 17. Qd1 {[%clk 0:01:00.6]} 17... Nf5 {[%clk 0:01:44.5]} 18. Bg1
{[%clk 0:00:54.3]} 18... Qd8 {[%clk 0:01:44.6]} 19. Nf2 {[%clk 0:00:42.6]} 19...
Rd7 {[%clk 0:01:42.9]} 20. Qe2 {[%clk 0:00:35.1]} 20... Rb8 {[%clk 0:01:42.3]}
21. Rad1 {[%clk 0:00:31.8]} 21... b5 {[%clk 0:01:42.3]} 22. Ne4 {[%clk
0:00:31.6]} 22... Qc7 {[%clk 0:01:37.9]} 23. Qf2 {[%clk 0:00:28.8]} 23... c4
{[%clk 0:01:22.9]} 24. d4 {[%clk 0:00:20.6]} 24... Bb7 {[%clk 0:01:22.9]} 25. g4
{[%clk 0:00:20.9]} 25... Ne7 {[%clk 0:01:13.1]} 26. Nc5 {[%clk 0:00:20.4]} 26...
Bxg2+ {[%clk 0:01:12.8]} 27. Qxg2 {[%clk 0:00:21.3]} 27... Rd6 {[%clk
0:01:12.9]} 28. f5 {[%clk 0:00:19.3]} 28... exf5 {[%clk 0:00:56.6]} 29. gxf5
{[%clk 0:00:20.2]} 29... Rf6 {[%clk 0:00:40.1]} 30. h3 {[%clk 0:00:19.6]} 30...
Rd8 {[%clk 0:00:31.2]} 31. Bh2 {[%clk 0:00:19.3]} 31... Qb6 {[%clk 0:00:31.7]}
32. Qg4 {[%clk 0:00:17.6]} 32... Nd5 {[%clk 0:00:25.5]} 33. Ne4 {[%clk
0:00:14.4]} 33... Ne3 {[%clk 0:00:21.7]} 34. Nxf6+ {[%clk 0:00:13.6]} 34... Qxf6
{[%clk 0:00:21.9]} 35. Qe4 {[%clk 0:00:13.7]} 35... Nxd1 {[%clk 0:00:20.5]} 36.
Rxd1 {[%clk 0:00:14.6]} 36... Bd6 {[%clk 0:00:19.1]} 37. Bxd6 {[%clk 0:00:08.3]}
37... Qxd6 {[%clk 0:00:20]} 38. Re1 {[%clk 0:00:06.4]} 38... Qg3 {[%clk
0:00:17.9]} 39. Qe3 {[%clk 0:00:03.9]} 39... Qh4 {[%clk 0:00:18.2]} 40. Rg1
{[%clk 0:00:03.8]} 40... Rd6 {[%clk 0:00:13.2]} 41. Rg4 {[%clk 0:00:03.7]} 41...
Qh5 {[%clk 0:00:08.8]} 42. Qf4 {[%clk 0:00:02]} 42... Rf6 {[%clk 0:00:08.7]} 43.
Qb8+ {[%clk 0:00:01.6]} 43... Kh7 {[%clk 0:00:09]} 44. Qe5 {[%clk 0:00:01.7]}
44... Qxh3+ {[%clk 0:00:08.7]} 0-1

[Event "Early-Titled-Tuesday-Blitz-January-30-2024"]
[Site "Chess.com"]
[Date "2024.01.30"]
[Round "9"]
[White "SaiAgni_98"]
[Black "chessdjw"]
[Result "0-1"]
[WhiteElo "2568"]
[BlackElo "2736"]
[TimeControl "180+1"]
[EndTime "9:49:17 PST"]
[Termination "chessdjw won by resignation"]

1. e4 {[%clk 0:03:00.9]} 1... e5 {[%clk 0:02:58.8]} 2. Nf3 {[%clk 0:03:00.6]}
2... Nc6 {[%clk 0:02:59.5]} 3. Nc3 {[%clk 0:03:01.2]} 3... Nf6 {[%clk
0:02:59.7]} 4. Bb5 {[%clk 0:03:01.8]} 4... Bd6 {[%clk 0:02:58.3]} 5. O-O {[%clk
0:02:57.9]} 5... O-O {[%clk 0:02:58.2]} 6. d3 {[%clk 0:02:52.6]} 6... h6 {[%clk
0:02:58.3]} 7. h3 {[%clk 0:02:52.6]} 7... a6 {[%clk 0:02:58.2]} 8. Bxc6 {[%clk
0:02:51.4]} 8... dxc6 {[%clk 0:02:59.1]} 9. Be3 {[%clk 0:02:51.8]} 9... Re8
{[%clk 0:02:57.8]} 10. Nh2 {[%clk 0:02:51.7]} 10... c5 {[%clk 0:02:55.4]} 11. b3
{[%clk 0:02:51.6]} 11... b6 {[%clk 0:02:54.9]} 12. a4 {[%clk 0:02:51.2]} 12...
Be6 {[%clk 0:02:46.6]} 13. Ne2 {[%clk 0:02:51.1]} 13... g5 {[%clk 0:02:37.5]}
14. g4 {[%clk 0:02:50.2]} 14... Nd7 {[%clk 0:02:34.9]} 15. Ng3 {[%clk
0:02:48.9]} 15... Nf8 {[%clk 0:02:34.7]} 16. Nf5 {[%clk 0:02:48.8]} 16... Kh7
{[%clk 0:02:31.6]} 17. Re1 {[%clk 0:02:15.8]} 17... Ng6 {[%clk 0:02:31.4]} 18.
Nf1 {[%clk 0:02:16]} 18... Nf4 {[%clk 0:02:29.9]} 19. Kh2 {[%clk 0:02:16]} 19...
Bxf5 {[%clk 0:02:26]} 20. exf5 {[%clk 0:02:12.9]} 20... Bf8 {[%clk 0:02:22.6]}
21. Ng3 {[%clk 0:02:09]} 21... Qd5 {[%clk 0:02:12.6]} 22. Bxf4 {[%clk
0:02:02.3]} 22... exf4 {[%clk 0:02:10.8]} 23. Ne4 {[%clk 0:01:59.5]} 23... Bg7
{[%clk 0:02:09.8]} 24. Qf3 {[%clk 0:01:55.8]} 24... Qd4 {[%clk 0:01:40.4]} 25.
Rad1 {[%clk 0:01:48.9]} 25... Rad8 {[%clk 0:01:39.4]} 26. Kg2 {[%clk 0:01:30.9]}
26... Be5 {[%clk 0:01:39.1]} 27. Rh1 {[%clk 0:01:20.7]} 27... Bf6 {[%clk
0:01:26.9]} 28. h4 {[%clk 0:01:03.3]} 28... gxh4 {[%clk 0:01:23.7]} 29. Qxf4
{[%clk 0:00:52.3]} 29... Kg7 {[%clk 0:01:24]} 30. c3 {[%clk 0:00:40.4]} 30...
Qe5 {[%clk 0:01:17.8]} 31. Nxf6 {[%clk 0:00:40.8]} 31... Qxf6 {[%clk 0:01:14.3]}
32. d4 {[%clk 0:00:35.5]} 32... cxd4 {[%clk 0:01:12.1]} 33. Rxd4 {[%clk
0:00:36]} 33... Rxd4 {[%clk 0:01:10.1]} 34. cxd4 {[%clk 0:00:36.5]} 34... Qg5
{[%clk 0:01:06.2]} 35. Qf3 {[%clk 0:00:32]} 35... h5 {[%clk 0:01:02.6]} 36. Kh3
{[%clk 0:00:26]} 36... hxg4+ {[%clk 0:01:00.3]} 37. Qxg4 {[%clk 0:00:26.9]}
37... Qxg4+ {[%clk 0:01:01]} 38. Kxg4 {[%clk 0:00:27.8]} 38... Re4+ {[%clk
0:01:01.2]} 39. Kf3 {[%clk 0:00:24]} 39... Rxd4 {[%clk 0:01:01.2]} 40. Rc1
{[%clk 0:00:24.7]} 40... c5 {[%clk 0:01:00]} 41. a5 {[%clk 0:00:25.2]} 41... Rb4
{[%clk 0:00:51.5]} 42. axb6 {[%clk 0:00:25]} 42... Rxb6 {[%clk 0:00:49]} 43.
Rxc5 {[%clk 0:00:24.5]} 43... Rxb3+ {[%clk 0:00:49.3]} 44. Kg4 {[%clk
0:00:17.1]} 44... h3 {[%clk 0:00:49.7]} 45. Ra5 {[%clk 0:00:16.6]} 45... h2
{[%clk 0:00:45.7]} 46. Ra1 {[%clk 0:00:16.5]} 46... a5 {[%clk 0:00:45.7]} 47.
Rh1 {[%clk 0:00:14.6]} 47... a4 {[%clk 0:00:46.1]} 48. Rxh2 {[%clk 0:00:15.1]}
48... a3 {[%clk 0:00:46.2]} 49. f3 {[%clk 0:00:14.4]} 49... Rb2 {[%clk
0:00:46.1]} 50. Rh1 {[%clk 0:00:14.9]} 50... a2 {[%clk 0:00:46.5]} 51. Ra1
{[%clk 0:00:15.6]} 51... Kf6 {[%clk 0:00:44.8]} 52. Kf4 {[%clk 0:00:16.3]} 52...
Re2 {[%clk 0:00:45.3]} 53. Kg4 {[%clk 0:00:15.6]} 53... Ke5 {[%clk 0:00:45.5]}
54. Kg5 {[%clk 0:00:15.5]} 54... Rg2+ {[%clk 0:00:45.2]} 55. Kh4 {[%clk
0:00:15.2]} 55... Kxf5 {[%clk 0:00:45.4]} 56. Kh3 {[%clk 0:00:14.9]} 56... Rc2
{[%clk 0:00:43.9]} 57. Kg3 {[%clk 0:00:15.7]} 57... Rb2 {[%clk 0:00:44.5]} 58.
Kh3 {[%clk 0:00:11]} 58... Kf4 {[%clk 0:00:44.8]} 0-1

[Event "Early-Titled-Tuesday-Blitz-January-30-2024"]
[Site "Chess.com"]
[Date "2024.01.30"]
[Round "9"]
[White "sokidze"]
[Black "santosalberto1987"]
[Result "1-0"]
[WhiteElo "2834"]
[BlackElo "2532"]
[TimeControl "180+1"]
[EndTime "9:49:20 PST"]
[Termination "sokidze won on time"]

1. d4 {[%clk 0:03:00.9]} 1... Nf6 {[%clk 0:02:59.4]} 2. c4 {[%clk 0:03:00.3]}
2... d6 {[%clk 0:02:59.6]} 3. Nf3 {[%clk 0:02:59.3]} 3... g6 {[%clk 0:02:56.9]}
4. g3 {[%clk 0:02:58.5]} 4... Bg7 {[%clk 0:02:56.1]} 5. Bg2 {[%clk 0:02:58]}
5... O-O {[%clk 0:02:56.5]} 6. Nc3 {[%clk 0:02:57.2]} 6... Nc6 {[%clk
0:02:56.6]} 7. O-O {[%clk 0:02:56.8]} 7... a6 {[%clk 0:02:56.7]} 8. Be3 {[%clk
0:02:44.1]} 8... Rb8 {[%clk 0:02:55.5]} 9. Rc1 {[%clk 0:02:43.7]} 9... b5 {[%clk
0:02:43.1]} 10. Nd5 {[%clk 0:02:41.5]} 10... bxc4 {[%clk 0:02:32.9]} 11. Nxf6+
{[%clk 0:02:38.3]} 11... Bxf6 {[%clk 0:02:33.8]} 12. Rxc4 {[%clk 0:02:17.9]}
12... Bd7 {[%clk 0:02:24]} 13. Qd2 {[%clk 0:01:58.9]} 13... Na7 {[%clk
0:01:56.3]} 14. Rfc1 {[%clk 0:01:48.2]} 14... c6 {[%clk 0:01:56]} 15. Bh6 {[%clk
0:01:39]} 15... Re8 {[%clk 0:01:55.5]} 16. e4 {[%clk 0:01:36.4]} 16... Qb6
{[%clk 0:01:45.6]} 17. b3 {[%clk 0:01:33.8]} 17... Nb5 {[%clk 0:01:44.4]} 18. e5
{[%clk 0:01:31.5]} 18... Bh8 {[%clk 0:01:41.9]} 19. Ng5 {[%clk 0:01:29.2]} 19...
d5 {[%clk 0:01:00.9]} 20. Rc5 {[%clk 0:01:10.9]} 20... f6 {[%clk 0:00:55.8]} 21.
Nf3 {[%clk 0:01:02.8]} 21... Nc7 {[%clk 0:00:54.2]} 22. Be3 {[%clk 0:00:55.6]}
22... Ne6 {[%clk 0:00:53.5]} 23. R5c2 {[%clk 0:00:55]} 23... Qb4 {[%clk
0:00:47.6]} 24. Qd3 {[%clk 0:00:52.8]} 24... a5 {[%clk 0:00:46.2]} 25. Bd2
{[%clk 0:00:40.3]} 25... Qb5 {[%clk 0:00:46]} 26. Qe3 {[%clk 0:00:40.5]} 26...
a4 {[%clk 0:00:43.8]} 27. b4 {[%clk 0:00:39.9]} 27... Qb6 {[%clk 0:00:30.9]} 28.
Bc3 {[%clk 0:00:37.6]} 28... Ng7 {[%clk 0:00:27.5]} 29. Re2 {[%clk 0:00:36.1]}
29... Nf5 {[%clk 0:00:24.8]} 30. Qd2 {[%clk 0:00:35.2]} 30... Bg7 {[%clk
0:00:22.9]} 31. Rce1 {[%clk 0:00:34.4]} 31... Bc8 {[%clk 0:00:20.5]} 32. g4
{[%clk 0:00:30.4]} 32... Ba6 {[%clk 0:00:12]} 33. gxf5 {[%clk 0:00:28.5]} 33...
Bxe2 {[%clk 0:00:08.6]} 34. Rxe2 {[%clk 0:00:27.9]} 34... gxf5 {[%clk
0:00:08.4]} 35. Qf4 {[%clk 0:00:27.1]} 35... Qc7 {[%clk 0:00:07.4]} 36. Qxf5
{[%clk 0:00:26.9]} 36... Qc8 {[%clk 0:00:07.4]} 37. Qh5 {[%clk 0:00:20.9]} 37...
Qe6 {[%clk 0:00:05.5]} 38. Bh3 {[%clk 0:00:17.7]} 38... Qf7 {[%clk 0:00:05.8]}
39. Qxf7+ {[%clk 0:00:16]} 39... Kxf7 {[%clk 0:00:06.7]} 40. Bd7 {[%clk
0:00:16.7]} 40... Red8 {[%clk 0:00:06.5]} 41. Bxc6 {[%clk 0:00:16]} 41... f5
{[%clk 0:00:06.2]} 42. Ng5+ {[%clk 0:00:15.3]} 42... Kg6 {[%clk 0:00:06.1]} 43.
Ne6 {[%clk 0:00:15.4]} 43... Rdc8 {[%clk 0:00:06.7]} 44. b5 {[%clk 0:00:14.7]}
44... Kf7 {[%clk 0:00:06.3]} 45. Nc5 {[%clk 0:00:12.1]} 45... e6 {[%clk
0:00:05.4]} 46. Bd7 {[%clk 0:00:12.4]} 1-0